Cogmind - Beta 14 @@@ ROGUE MODE // 2024.08.20 @ 00:51:43 Player: Heclapar Result: Self-destructed Performance ------------- Evolutions (6) 3000 Regions Visited (13) 2600 Robots Destroyed (130) 650 Value Destroyed (6066) 6066 Prototype IDs (40) 800 Alien Tech Used (0) 0 Bonus (2692) 2692 TOTAL SCORE: 15808 Bonus ------- High Alert Combat Kills 784 Follower Combat Kills 1743 Registered with UFD 300 Met Data Miner 300 Met R17 at Cetus 500 Friendly Fire -935 Cogmind --------- Core Integrity 867/1150 Matter 294/300 Energy 565/565 System Corruption 9% Temperature Cool (32) Movement Treading (160) Location -4/Factory Parts ------- > --- POWER (2) -------- Neutrino Core Quantum Reactor > --- PROPULSION (6) --- Centrium Heavy Treads Centrium Heavy Treads > --- UTILITY (9) ------ Advanced Heat Sink Large Storage Unit Advanced Salvage Targeting Computer Drone Bay (1/2) > --- WEAPON (2) ------- Heavy Gatling Laser Advanced Variable Charge Gun > --- INVENTORY (15) --- Light Antimatter Reactor Advanced Cooling System Faulty Particle Accelerator Transmission Jammer High-powered Tractor Beam Plasma Rifle Advanced Variable Charge Gun Heavy Disruptor Cannon Matter Neutralizer Coil Gun Railgun Advanced KE Penetrator Advanced KE Penetrator Improved Plasma Cutter Peak State ------------ > --- POWER ------------ Quantum Reactor Quantum Reactor > --- PROPULSION ------- Centrium Heavy Treads Centrium Heavy Treads Centrium Heavy Treads > --- UTILITY ---------- Advanced Cooling System Advanced Cooling System Large Storage Unit Makeshift Transmission Jammer Centrium Medium Armor Plating Centrium Medium Armor Plating Enhanced Scrap Shield Improved Component Analysis Suite > --- WEAPON ----------- Advanced Variable Charge Gun Advanced Variable Charge Gun > --- INVENTORY -------- Quantum Reactor Centrium Heavy Treads Myomer Leg Advanced Heat Sink Transmission Jammer Centrium Medium Armor Plating High-powered Tractor Beam Wave Gun Wave Gun Improved KE Penetrator Advanced KE Penetrator Advanced KE Penetrator Improved Plasma Cutter Makeshift Hammer [Rating: 152] Favorites ----------- Power Quantum Reactor Engine Cooled Deuterium Engine Power Core Neutrino Core Reactor Quantum Reactor Propulsion Titanium Leg Treads Centrium Heavy Treads Leg Titanium Leg Wheel Wheel Utility Large Storage Unit Device Improved Cooling System Storage Large Storage Unit Processor Targeting Computer Protection Enhanced Scrap Shield Weapon Coil Gun Energy Gun Advanced Variable Charge Gun Energy Cannon Ion Burst Cannon Ballistic Gun Coil Gun Ballistic Cannon Improved Light Cannon Launcher Improved Proton Missile Launcher Special Weapon Improved Plasma Cutter Impact Weapon Makeshift Hammer Slashing Weapon Mining Claw Build | -11 -10 -10 -9 -9 -6 -6 -6 -6 -5 -5 -5 -5 -4 ------- Run | Yrd Mat Sub Rec Scr Fac Low Low Dat Pro Fac Ext Cet Fac Slots Evolved 12 | . . . . . 8 . . . . 2 . . 2 Power 1 | . . . . . 1 . . . . . . . . Propulsion 4 | . . . . . 2 . . . . 1 . . 1 Utility 7 | . . . . . 5 . . . . 1 . . 1 Weapon . | . . . . . . . . . . . . . . Parts Attached 151 | . 11 8 1 6 34 10 3 1 2 5 29 19 22 Power 21 | . 2 1 1 1 6 1 . . . 1 3 3 2 Engine 12 | . 2 1 1 1 5 1 . . . 1 . . . Core 2 | . . . . . . . . . . . 1 . 1 Reactor 7 | . . . . . 1 . . . . . 2 3 1 Propulsion 29 | . . 2 . 2 6 . . . . 1 8 8 2 Treads 10 | . . . . 2 1 . . . . . . 5 2 Leg 17 | . . . . . 5 . . . . 1 8 3 . Wheel 2 | . . 2 . . . . . . . . . . . Hover . | . . . . . . . . . . . . . . Flight . | . . . . . . . . . . . . . . Utility 46 | . 3 . . 2 8 3 3 . 1 1 6 5 14 Device 20 | . . . . . 5 . 1 . 1 . 3 2 8 Storage 2 | . 1 . . 1 . . . . . . . . . Processor 4 | . 2 . . . . 1 . . . . . . 1 Hackware . | . . . . . . . . . . . . . . Protection 20 | . . . . 1 3 2 2 . . 1 3 3 5 Artifact . | . . . . . . . . . . . . . . Weapon 55 | . 6 5 . 1 14 6 . 1 1 2 12 3 4 Energy Gun 18 | . 1 1 . . 3 1 . . . 1 6 2 3 Energy Cannon 3 | . . . . . . 1 . 1 . . . . 1 Ballistic Gun 15 | . 1 1 . 1 7 3 . . . . 1 1 . Ballistic Cannon 3 | . 2 1 . . . . . . . . . . . Launcher 9 | . 2 . . . 2 . . . 1 1 3 . . Special Weapon 2 | . . . . . . . . . . . 2 . . Impact Weapon 4 | . . 1 . . 2 1 . . . . . . . Slashing Weapon 1 | . . 1 . . . . . . . . . . . Piercing Weapon . | . . . . . . . . . . . . . . Special Melee Weapon . | . . . . . . . . . . . . . . Unidentified Prototypes 10 | . . . . . 1 2 . . . . 1 4 2 Corrupted Parts 8 | . . . . . . . . . . . 1 7 . System Corruption 51 | . . . . . . . . . . . 6 45 . Parts Lost 30 | . 1 3 . . 8 . . . . 1 2 . 15 Power 6 | . . 2 . . . . . . . 1 1 . 2 Propulsion 5 | . . . . . 2 . . . . . 1 . 2 Utility 14 | . . . . . 3 . . . . . . . 11 Weapon 5 | . 1 1 . . 3 . . . . . . . . Highest Loss Streak 6 | . 1 2 . . 2 . . . . 1 1 . 6 To Critical Strikes 1 | . . . . . . . . . . . . . 1 Average Slot Usage (%) 83 | . 97 99 96 88 75 73 79 66 80 75 81 82 74 Engine 9 | . 13 13 10 14 9 12 13 13 13 10 7 . . Reactor 2 | . . . . . 2 . . . . . 2 10 8 Treads 3 | . . . . 2 7 . . . . . . 9 14 Leg 11 | . 28 18 . . 11 13 13 13 13 17 22 7 . Wheel 5 | . . 9 28 25 . . . . . . . . . Device 11 | . . . . . 17 20 19 20 20 17 16 14 19 Storage 8 | . 14 14 14 14 5 6 6 6 6 5 5 5 5 Processor 3 | . 12 14 14 . . . 6 6 6 5 3 . . Protection 6 | . . . . 4 7 5 5 6 6 5 6 18 13 Energy Gun 7 | . 16 . 14 14 2 1 5 . 6 3 6 8 9 Energy Cannon 1 | . . . . . . 4 6 . 6 5 3 . . Ballistic Gun 5 | . 1 11 14 12 8 5 . . . . . 2 . Ballistic Cannon 1 | . 8 8 . . . . . . . . . . . Peak Build Rating 152 | . 9 15 14 20 75 80 73 73 74 85 92 132 152 Average Rating 63 | . 7 10 13 16 67 78 72 63 72 80 84 117 138 On Entrance 51 | 6 6 9 12 14 20 67 73 73 73 73 84 85 132 Naked Turns . | . . . . . . . . . . . . . . Heaviest Build 114 | 10 33 33 35 41 77 74 68 62 66 81 88 106 114 Greatest Support 240 | 20 20 20 20 40 76 67 67 67 67 84 99 160 240 Greatest Overweight (x) 2 | . 1 1 1 2 1 1 1 . . . 1 1 . Average Overweight (x) . | . . 1 1 1 . . . . . . . . . Largest Inventory Capacity 15 | . 15 15 15 15 15 15 15 15 15 15 15 15 15 Average Capacity 14 | . 9 15 15 15 15 15 15 15 15 15 15 15 15 Most Carried 15 | . 8 15 15 15 15 15 15 15 15 14 15 15 15 Average Carried 13 | . 7 12 14 14 11 14 14 15 14 12 13 14 14 Final Capacity 15 | 8 15 15 15 15 15 15 15 15 15 15 15 15 15 Final Carried 15 | 6 8 15 15 15 15 15 15 15 14 12 15 15 15 Class Distribution -------------------- 70% | Mutant 21% | Scavenger-Mutant 5% | Derelict-Mutant Dominant Class ---------------- Mutant | -10/Materials Mutant | -10/Subcaves Mutant | -9/Recycling Mutant | -9/Scraptown Mutant | -6/Factory Mutant | -6/Lower Caves Mutant | -6/Lower Caves Mutant | -6/Data Miner Mutant | -5/Proximity Caves Mutant | -5/Factory Mutant | -5/Extension Scavenger-Mutant | -5/Cetus Scavenger-Mutant | -4/Factory Resources | -11 -10 -10 -9 -9 -6 -6 -6 -6 -5 -5 -5 -5 -4 ----------- Run | Yrd Mat Sub Rec Scr Fac Low Low Dat Pro Fac Ext Cet Fac Matter Collected 2894 | 200 185 306 10 28 714 410 30 . 17 113 333 330 218 Remotely . | . . . . . . . . . . . . . . Salvage Created 5939 | . 277 213 . . 1001 620 . . . 567 1881 160 1220 Parts 246 | . 17 10 . . 49 17 . . . 28 73 7 45 Haulers Intercepted 2 | . 2 . . . . . . . . . . . . Recyclers Shooed 5 | . 1 . . . 2 . . . . . 1 . 1 Parts Field Recycled . | . . . . . . . . . . . . . . Retrieved Matter . | . . . . . . . . . . . . . . Parts Self-Destructed 24 | . . 8 . . . 16 . . . . . . . Prevented 5 | . . 1 . . . 1 . . 3 . . . . Kills | -11 -10 -10 -9 -9 -6 -6 -6 -6 -5 -5 -5 -5 -4 ------- Run | Yrd Mat Sub Rec Scr Fac Low Low Dat Pro Fac Ext Cet Fac Combat Hostiles Destroyed 108 | . 8 8 . . 20 13 . . . 7 23 2 27 Melee 1 | . . 1 . . . . . . . . . . . Guns 54 | . 2 3 . . 15 3 . . . . 7 2 22 Cannons 20 | . 1 3 . . . 10 . . . 1 5 . . AOE 21 | . 5 . . . 4 . . . . 3 6 . 3 Classes Destroyed 20 | . 4 4 . . 4 1 . . . 1 5 . 1 Worker 3 | . . . . . 1 . . . . 2 . . . Builder 7 | . 1 . . . 3 . . . . 2 1 . . Tunneler 2 | . . . . . . . . . . . 2 . . Hauler 2 | . 2 . . . . . . . . . . . . Recycler 4 | . . . . . 1 . . . . . 3 . . Turret 1 | . . 1 . . . . . . . . . . . Watcher 1 | . . . . . . . . . . . 1 . . Swarmer 24 | . 3 2 . . 4 4 . . . . 6 . 5 Grunt 37 | . 5 . . . 9 7 . . . 5 6 . 5 Brawler 3 | . . . . . . . . . . 2 1 . . Duelist 3 | . . . . . 1 1 . . . . 1 . . Sentry 7 | . . 1 . . 2 1 . . . . 2 . 1 Demolisher 1 | . . . . . . . . . . . 1 . . Specialist 2 | . . . . . . . . . . . . . 2 Hunter 10 | . . . . . . . . . . . 4 . 6 Programmer 12 | . . . . . 4 . . . . . 1 . 7 Behemoth 2 | . . . . . . . . . . . 1 . 1 Cetus Guard 2 | . . . . . . . . . . . . 2 . Artisan 2 | . . 2 . . . . . . . . . . . Subdweller 5 | . . 5 . . . . . . . . . . . Samaritan 1 | . . . . . . 1 . . . . . . . Thug 2 | . . . . . . . . . . . 2 . . Best Kill Streak 8 | . 5 3 . . 6 5 . . . 6 8 1 6 Combat Bots Only 8 | . 5 2 . . 4 5 . . . 4 8 1 6 Max Kills in Single Turn 4 | . 2 1 . . 4 2 . . . 4 3 1 3 Gunslinging 1 | . . . . . 1 . . . . . 1 . 1 Exploded 3 | . 1 . . . 2 . . . . 3 3 . 3 Melee 1 | . . 1 . . . . . . . . . . . Uniques/NPCs Destroyed . | . . . . . . . . . . . . . . Combat | -11 -10 -10 -9 -9 -6 -6 -6 -6 -5 -5 -5 -5 -4 -------- Run | Yrd Mat Sub Rec Scr Fac Low Low Dat Pro Fac Ext Cet Fac Hostile Shots Fired 945 | . 29 59 . . 182 63 29 . 6 10 138 53 376 Missed 308 | . 12 20 . . 64 22 13 . 3 3 40 18 113 Damage Taken 12371 | . 282 665 . . 2264 800 197 . 86 131 1717 873 5356 Core 598 | . 66 50 . . 106 47 . . . . 23 23 283 Absorbed by Shields 313 | . . . . . . . . . . . 170 143 . Reduced by Siege Mode 57 | . . . . . . . . . . . . . 57 Redirected to Shielding 222 | . . . . . . . . . . . . . 222 Ignored by Resistances 139 | . . . . . . . . . . . . . 139 Regen/Repaired (Parts) 152 | . 14 . . . 91 29 . . 18 . . . . Core Remaining (%) 82 | 100 . . . 53 . . . . 82 . . 95 . Volleys Fired 387 | . 41 24 . . 80 29 . . 5 14 73 25 96 Largest 2 | . 2 2 . . 2 2 . . 2 1 2 2 2 Hottest 240 | . 80 90 . . 120 169 . . 169 100 169 162 240 Shots Fired 709 | . 72 48 . . 152 47 2 . 10 14 128 49 187 Gun 548 | . 46 16 . . 146 22 2 . 5 . 75 49 187 Cannon 129 | . 18 32 . . . 25 . . 5 6 43 . . Launcher 32 | . 8 . . . 6 . . . . 8 10 . . Special . | . . . . . . . . . . . . . . Kinetic 190 | . 18 42 . . 100 15 . . . . . 15 . Thermal 443 | . 22 6 . . 26 32 2 . 10 6 118 34 187 Explosive 14 | . 8 . . . 6 . . . . . . . . Electromagnetic 62 | . 24 . . . 20 . . . . 8 10 . . Robot Hit Streak 34 | . 4 11 . . 10 14 . . 1 4 9 9 34 Robot Miss Streak 16 | . 3 1 . . 4 5 . . 16 3 9 2 5 Penetration Max 1 | . . . . . 1 1 . . . . . 1 . Secondary Targets 12 | . . . . . 3 . . . . . 2 . 7 Max Gunslinging Chain 1 | . . . . . 1 . . . . . 1 . 1 Shots Hit Robots 510 | . 38 59 . . 102 33 . . 2 9 88 40 139 Core Hits 287 | . 19 11 . . 49 23 . . . 20 71 12 82 Critical Kills 2 | . . . . . 1 . . . . . . 1 . Critical Parts Destroyed 3 | . . 2 . . . . . . . . . 1 . Critical Strikes 13 | . 1 6 . . 1 . . . . . . 5 . Burn 1 | . . . . . . . . . . . . 1 . Destroy 6 | . . 1 . . 1 . . . . . . 4 . Blast 2 | . 1 1 . . . . . . . . . . . Smash 4 | . . 4 . . . . . . . . . . . Melee Attacks 36 | . . 29 . . 5 2 . . . . . . . Impact 19 | . . 12 . . 5 2 . . . . . . . Slashing 17 | . . 17 . . . . . . . . . . . Piercing . | . . . . . . . . . . . . . . Sneak Attacks 2 | . . 2 . . . . . . . . . . . Combat Hostiles . | . . . . . . . . . . . . . . Follow-up Attacks . | . . . . . . . . . . . . . . Damage Inflicted 18733 | . 936 1419 . . 3222 1303 . . 41 953 4761 1068 5030 Guns 10022 | . 330 270 . . 2111 357 . . . . 1239 1068 4647 Cannons 3588 | . 234 413 . . . 946 . . 41 127 1827 . . Explosions 4364 | . 372 . . . 1111 . . . . 826 1672 . 383 Melee 736 | . . 736 . . . . . . . . . . . Ramming 23 | . . . . . . . . . . . 23 . . Kinetic 2935 | . 234 587 . . 1494 276 . . . . . 344 . Thermal 10932 | . 166 96 . . 351 1027 . . 41 221 3276 724 5030 Explosive 1483 | . 372 . . . 1111 . . . . . . . . Electromagnetic 2624 | . 164 . . . 266 . . . . 732 1462 . . Impact 500 | . . 500 . . . . . . . . . . . Slashing 236 | . . 236 . . . . . . . . . . . Piercing . | . . . . . . . . . . . . . . Highest Corruption 53 | . 1 1 1 . 5 5 5 5 5 . 8 53 9 Average Corruption 6 | . 1 1 1 . 4 5 5 5 5 . 6 28 6 Corruption Purged . | . . . . . . . . . . . . . . Corruption Blocked . | . . . . . . . . . . . . . . Effects 168 | . 2 11 1 . 28 38 9 3 8 . 6 36 26 Message Errors 42 | . 1 3 . . 8 9 4 . 2 . 1 10 4 Matter Fused 41 | . . 3 1 . 8 9 . . 1 . 2 7 10 Heat Flow Errors 22 | . . . . . 3 3 1 1 2 . . 8 4 Energy Discharges 12 | . 1 . . . . 4 . 1 . . 2 3 1 Parts Rejected 1 | . . . . . . 1 . . . . . . . Data Loss (minor) 25 | . . 5 . . 3 5 1 1 2 . . 3 5 Data Loss (major) 9 | . . . . . 3 2 1 . . . . 2 1 Misfires 7 | . . . . . . 3 2 . . . 1 1 . Alerts 6 | . . . . . 2 1 . . 1 . . 1 1 Weapon Failures 3 | . . . . . 1 1 . . . . . 1 . Overload Shots 4 | . . . . . . . . . . . . . 4 Overflow Damage 311 | . 16 182 . . 16 13 . . . 7 26 . 51 Projectiles 34 | . . . . . . 13 . . . . 21 . . Explosions 95 | . 16 . . . 16 . . . . 7 5 . 51 Melee 182 | . . 182 . . . . . . . . . . . Knockbacks 10 | . 4 6 . . . . . . . . . . . Impact 1 | . . 1 . . . . . . . . . . . Kinetic 9 | . 4 5 . . . . . . . . . . . Secondary . | . . . . . . . . . . . . . . Self-Inflicted Damage 357 | . 92 . . . 265 . . . . . . . . Shots 9 | . 3 . . . 6 . . . . . . . . Rammed 1 | . . . . . . . . . . . . . 1 Targets Rammed 3 | . . . . . . . . . . . 2 . 1 Kicked 2 | . . . . . . . . . . . 2 . . Crushed . | . . . . . . . . . . . . . . Highest Temperature 310 | . 153 . . . 310 225 122 92 143 2 269 212 276 Average Temperature 64 | . 52 . . . 103 40 76 69 33 2 51 60 60 Received Heat Transfer 1874 | . 90 195 . . 456 225 36 . 12 81 300 119 360 Effects 1 | . . . . . 1 . . . . . . . . Short Circuit 1 | . . . . . 1 . . . . . . . . Siege Activations 1 | . . . . . . . . . . . . . 1 Total Turns 26 | . . . . . . . . . . . . . 26 Longest Duration 26 | . . . . . . . . . . . . . 26 Robots Corrupted 10 | . . 2 . . 1 . . . . 3 4 . . Combat Hostiles 8 | . . 1 . . 1 . . . . 3 3 . . Parts Fried 25 | . 1 2 . . 1 . . . . 4 17 . . Impact Corruptions 6 | . . 6 . . . . . . . . . . . Robots Melted 4 | . . . . . . . . . . . 2 . 2 Combat Hostiles 4 | . . . . . . . . . . . 2 . 2 Parts Melted 22 | . . . . . . . . . . . 8 . 14 Heat Transferred 14591 | . 375 125 . . 425 1225 . . 50 200 4211 1184 6796 Parts Sabotaged . | . . . . . . . . . . . . . . Parts Stolen 2 | . . . . . . 2 . . . . . . . Parts Stripped . | . . . . . . . . . . . . . . Power Chain Reactions 4 | . . . . . . . . . . 2 2 . . Alert | -11 -10 -10 -9 -9 -6 -6 -6 -6 -5 -5 -5 -5 -4 ------- Run | Yrd Mat Sub Rec Scr Fac Low Low Dat Pro Fac Ext Cet Fac Peak Influence 1423 | . 253 . 71 . 433 . . . . 990 1423 853 460 Initial 796 | . . . 60 . . . . . . 750 485 796 364 Average 332 | . 100 . 63 . 165 . . . . 875 451 752 314 Maximum Alert Level 4 | . 1 . . . 2 . . . . 3 4 3 2 Low Security (%) 40 | . 77 . 100 . 60 . . . . . 24 . 21 Level 1 30 | . 22 . . . 37 . . . . . 18 . 67 Level 2 15 | . . . . . 1 . . . . . 37 44 11 Level 3 13 | . . . . . . . . . . 100 17 55 . Level 4 . | . . . . . . . . . . . 1 . . Level 5 . | . . . . . . . . . . . . . . High Security . | . . . . . . . . . . . . . . Max Security . | . . . . . . . . . . . . . . Squads Dispatched 21 | . 2 . . . 6 . . . . 1 4 . 8 Investigation 1 | . . . . . . . . . . . . . 1 Extermination 8 | . . . . . 4 . . . . 1 . . 3 Reinforcement 8 | . 2 . . . . . . . . . 2 . 4 Assault 4 | . . . . . 2 . . . . . 2 . . Garrison . | . . . . . . . . . . . . . . Intercept . | . . . . . . . . . . . . . . Searches Triggered 1 | . . . . . . . . . . . 1 . . Construction Impeded 2 | . . . . . . . . . . . 2 . . Haulers Reinforced . | . . . . . . . . . . . . . . Active Scanning Responses . | . . . . . . . . . . . . . . Cargo Convoy Interrupts . | . . . . . . . . . . . . . . Stealth | -11 -10 -10 -9 -9 -6 -6 -6 -6 -5 -5 -5 -5 -4 --------- Run | Yrd Mat Sub Rec Scr Fac Low Low Dat Pro Fac Ext Cet Fac Distress Signals 8 | . 1 . . . 2 . . . . . 3 2 . Communications Jammed 144 | . . . . . 4 . . . 4 6 77 . 53 Distress Signals 127 | . . . . . 4 . . . . 6 65 . 52 Times Spotted 206 | . 18 11 . . 29 16 9 . 6 10 56 10 41 Peak Tracking Total 9 | . 4 3 . . 5 4 5 . 2 5 9 5 6 Tactical Retreats 12 | . 1 2 . . 2 . 3 . . . 3 . 1 Traps | -11 -10 -10 -9 -9 -6 -6 -6 -6 -5 -5 -5 -5 -4 ------- Run | Yrd Mat Sub Rec Scr Fac Low Low Dat Pro Fac Ext Cet Fac Traps Triggered 7 | . 1 . . . 1 . . . . . 3 . 2 Indirectly 2 | . . . . . . . . . . . 2 . . Trap Hack Attempts . | . . . . . . . . . . . . . . Triggered . | . . . . . . . . . . . . . . Disarmed . | . . . . . . . . . . . . . . Reprogrammed . | . . . . . . . . . . . . . . Reused . | . . . . . . . . . . . . . . Traps Extracted . | . . . . . . . . . . . . . . Installed . | . . . . . . . . . . . . . . Triggered 2 | . . . . . . 1 . . 1 . . . . Machines | -11 -10 -10 -9 -9 -6 -6 -6 -6 -5 -5 -5 -5 -4 ---------- Run | Yrd Mat Sub Rec Scr Fac Low Low Dat Pro Fac Ext Cet Fac Machines Disabled 20 | . . 3 . . 5 . . . . . 8 . 4 Max in Single Turn 2 | . . 1 . . 2 . . . . . 1 . 2 Garrison Access 2 | . . . . . 2 . . . . . . . . Machines Repaired . | . . . . . . . . . . . . . . Machines Dismantled 2 | . . . . . . . . . . . 2 . . Machines Sabotaged . | . . . . . . . . . . . . . . Overloaded Fab Kills . | . . . . . . . . . . . . . . Hacking | -11 -10 -10 -9 -9 -6 -6 -6 -6 -5 -5 -5 -5 -4 --------- Run | Yrd Mat Sub Rec Scr Fac Low Low Dat Pro Fac Ext Cet Fac Machines Accessed 30 | . 7 1 1 4 4 . . 4 . . 3 2 4 Terminals 17 | . 6 . 1 . 1 . . . . . 3 2 4 Fabricators 1 | . . . . . 1 . . . . . . . . Repair Stations 1 | . 1 . . . . . . . . . . . . Recycling Units . | . . . . . . . . . . . . . . Scanalyzers . | . . . . . . . . . . . . . . Garrison Access 2 | . . . . . 2 . . . . . . . . Total Hacks 100 | . 22 1 2 18 8 . . 29 . . 8 2 10 Successful 65 | . 7 1 2 18 2 . . 29 . . 3 2 1 Failed 35 | . 15 . . . 6 . . . . . 5 . 9 Catastrophic 10 | . 3 . . . 1 . . . . . 1 . 5 Database Lockouts . | . . . . . . . . . . . . . . Manual 16 | . . . . . . . . . . . 7 . 9 Terminals 40 | . 16 . 2 . 2 . . . . . 8 2 10 Fabricators 2 | . . . . . 2 . . . . . . . . Repair Stations 6 | . 6 . . . . . . . . . . . . Recycling Units . | . . . . . . . . . . . . . . Scanalyzers . | . . . . . . . . . . . . . . Garrison Access 4 | . . . . . 4 . . . . . . . . Terminal Hacks 62 | . 4 1 2 18 2 . . 29 . . 3 2 1 Record 24 | . . . . 11 . . . 11 . . . 2 . Part Schematic 11 | . . . 1 . . . . 10 . . . . . Robot Schematic 5 | . . . . . . . . 5 . . . . . Robot Analysis 6 | . . . . 6 . . . . . . . . . Prototype ID Bank 4 | . 1 . . . . . . 3 . . . . . Alert Level 1 | . . . . . . . . . . . 1 . . Unreport Threat 5 | . . . . . 2 . . . . . 2 . 1 Locate Traps 1 | . 1 . . . . . . . . . . . . Hauler Manifests 1 | . 1 . . . . . . . . . . . . Zone Layout 2 | . 1 . 1 . . . . . . . . . . Derelict Proto ID Bank 2 | . . 1 . 1 . . . . . . . . . Fabricator Hacks . | . . . . . . . . . . . . . . Repair Station Hacks 3 | . 3 . . . . . . . . . . . . Scan Component 2 | . 2 . . . . . . . . . . . . Repair 1 | . 1 . . . . . . . . . . . . Recycling Unit Hacks . | . . . . . . . . . . . . . . Scanalyzer . | . . . . . . . . . . . . . . Garrison Access Hacks . | . . . . . . . . . . . . . . Unauthorized Hacks . | . . . . . . . . . . . . . . Terminals . | . . . . . . . . . . . . . . Fabricators . | . . . . . . . . . . . . . . Repair Stations . | . . . . . . . . . . . . . . Recycling Units . | . . . . . . . . . . . . . . Scanalyzers . | . . . . . . . . . . . . . . Garrison Access . | . . . . . . . . . . . . . . Data Cores Recovered . | . . . . . . . . . . . . . . Used . | . . . . . . . . . . . . . . Hacking Detections 18 | . 6 . 1 . 4 . . . . . 3 . 4 Full Trace Events 2 | . 1 . . . . . . . . . . . 1 Feedback Events . | . . . . . . . . . . . . . . Feedback Blocked . | . . . . . . . . . . . . . . Robot Schematics Acquired 5 | . . . . . . . . 5 . . . . . Robots Built . | . . . . . . . . . . . . . . Authchips . | . . . . . . . . . . . . . . Time . | . . . . . . . . . . . . . . Total Robot Build Rating . | . . . . . . . . . . . . . . Part Schematics Acquired 11 | . . . 1 . . . . 10 . . . . . Parts Built . | . . . . . . . . . . . . . . Authchips . | . . . . . . . . . . . . . . Time . | . . . . . . . . . . . . . . Total Part Build Rating . | . . . . . . . . . . . . . . Parts Repaired 1 | . 1 . . . . . . . . . . . . Time 26 | . 26 . . . . . . . . . . . . Parts Recycled . | . . . . . . . . . . . . . . Recycled Matter . | . . . . . . . . . . . . . . Retrieved Matter . | . . . . . . . . . . . . . . Retrieved Components . | . . . . . . . . . . . . . . Parts Scanalyzed . | . . . . . . . . . . . . . . Part Schematics Acquired . | . . . . . . . . . . . . . . Parts Damaged . | . . . . . . . . . . . . . . Bothacking | -11 -10 -10 -9 -9 -6 -6 -6 -6 -5 -5 -5 -5 -4 ------------ Run | Yrd Mat Sub Rec Scr Fac Low Low Dat Pro Fac Ext Cet Fac Used RIF Installer . | . . . . . . . . . . . . . . Robots Hacked . | . . . . . . . . . . . . . . Non-combat . | . . . . . . . . . . . . . . Combat . | . . . . . . . . . . . . . . Robot Hacks Applied . | . . . . . . . . . . . . . . Relay Couplers Released 2 | . . . . . 2 . . . . . . . . Machine Destruction 2 | . . . . . 2 . . . . . . . . Fabnet Peak Effective % . | . . . . . . . . . . . . . . Robots Rewired 13 | . . . . . . 1 . . . . 12 . . Allies Hacked . | . . . . . . . . . . . . . . Hacks Repelled . | . . . . . . . . . . . . . . Allies | -11 -10 -10 -9 -9 -6 -6 -6 -6 -5 -5 -5 -5 -4 -------- Run | Yrd Mat Sub Rec Scr Fac Low Low Dat Pro Fac Ext Cet Fac Total Allies 27 | . . . . . . 1 . . . . 26 . . Largest Group 12 | . . . . . . 1 . . . . 12 11 1 Highest-Rated Group 477 | . . . . . . 29 . . . . 477 438 127 Highest-Rated Ally 159 | . . . . . . 29 . . . . 159 159 127 Total Orders 1 | . . . . . . . . . . . . . 1 EXPLORE 1 | . . . . . . . . . . . . . 1 Ally Attacks 300 | . . . . . . 1 . . . . 243 56 . Total Damage 5844 | . . . . . . 20 . . . . 4485 1339 . Kills 41 | . . . . . . 1 . . . . 32 8 . Allies Corrupted . | . . . . . . . . . . . . . . Allies Melted . | . . . . . . . . . . . . . . Intel | -11 -10 -10 -9 -9 -6 -6 -6 -6 -5 -5 -5 -5 -4 ------- Run | Yrd Mat Sub Rec Scr Fac Low Low Dat Pro Fac Ext Cet Fac Robot Analysis Total 6 | . . . . 6 . . . . . . . . . Derelict Logs Recovered 11 | . . 2 . 4 . 3 1 . 1 . . . . Drone Launches 2 | . . . . . . . . . . . . . 2 Drone Recoveries 1 | . . . . . . . . . . . . . 1 Exploration | -11 -10 -10 -9 -9 -6 -6 -6 -6 -5 -5 -5 -5 -4 ------------- Run | Yrd Mat Sub Rec Scr Fac Low Low Dat Pro Fac Ext Cet Fac Turns Passed 12041 | . 1006 1254 299 1641 1754 1345 331 108 273 280 1525 719 1506 Spaces Moved 7427 | 1 576 756 303 1517 921 682 290 96 197 205 876 317 690 Core . | . . . . . . . . . . . . . . Treads 1051 | . . . . 73 . . . . . . . 288 690 Legs 4233 | 1 576 360 . . 921 682 290 96 197 205 876 29 . Wheels 2143 | . . 396 303 1444 . . . . . . . . . Hover . | . . . . . . . . . . . . . . Flight . | . . . . . . . . . . . . . . Fastest Speed 90 | 120 120 95 95 95 90 110 110 110 110 116 113 124 160 Average Speed 133 | 120 136 140 95 104 147 177 110 110 110 116 119 185 160 Slowest Speed 320 | 120 190 190 95 320 190 190 190 110 110 116 197 240 160 Overloaded Moves . | . . . . . . . . . . . . . . Propulsion Burnouts . | . . . . . . . . . . . . . . Robots Hopped . | . . . . . . . . . . . . . . Cave-ins Triggered . | . . . . . . . . . . . . . . Exploration Rate (%) 53 | 2 83 49 72 90 29 73 53 71 43 4 86 69 23 Regions Visited 13 Branch Regions 9 Pre-discovered Areas 3 | . . . . 1 . . . 1 1 . . . . Known Exits Taken 2 | . . . . . . . . . . 1 . 1 . Unknown Exits Taken 11 | 1 1 1 1 1 1 1 1 1 1 . 1 . . Scrap Searched 18 | . . 5 . 6 . 4 2 . 1 . . . . Spaces Dug 18 | . 12 . . . 3 . . . . . . . 3 Terrain Destroyed 110 | . 36 . . . 49 1 . . . 4 1 2 17 Melee 3 | . . . . . 3 . . . . . . . . Projectile 17 | . . . . . 2 1 . . . . . 2 12 AOE 90 | . 36 . . . 44 . . . . 4 1 . 5 Terrain Rammed . | . . . . . . . . . . . . . . Walls Destroyed . | . . . . . . . . . . . . . . Machines Disabled . | . . . . . . . . . . . . . . Actions | -11 -10 -10 -9 -9 -6 -6 -6 -6 -5 -5 -5 -5 -4 --------- Run | Yrd Mat Sub Rec Scr Fac Low Low Dat Pro Fac Ext Cet Fac Total 8755 | . 724 855 314 1571 1169 756 300 99 241 228 1198 412 888 Wait 447 | . 87 25 7 26 94 15 4 . 35 3 85 17 49 Move 7414 | . 575 755 302 1516 920 681 289 95 196 204 875 316 690 Hop . | . . . . . . . . . . . . . . Pick Up 85 | . 4 9 2 9 20 4 . . . 1 13 9 14 Fast Attach 56 | . 5 . 1 5 8 3 2 1 1 . 6 11 13 Attach 41 | . 1 2 . . 13 3 1 . 1 3 8 2 7 Detach 8 | . . . . . 1 . 1 . 1 1 2 1 1 Swap 54 | . 5 6 . 1 13 4 . . . 2 15 6 2 Drop 109 | . 6 5 2 14 15 3 3 3 2 . 16 25 15 Fire 387 | . 41 24 . . 80 29 . . 5 14 73 25 96 Melee 36 | . . 29 . . 5 2 . . . . . . . Ram . | . . . . . . . . . . . . . . Kick 2 | . . . . . . . . . . . 2 . . Crush 1 | . . . . . . . . . . . . . 1 Escape Stasis 5 | . . . . . . . . . . . 5 . . Rewire 94 | . . . . . . 12 . . . . 82 . . Trap . | . . . . . . . . . . . . . . Miscellaneous 16 | . . . . . . . . . . . 16 . . Route ------- -11/Scrapyard -10/Materials (discovered 4 exits: [*Mat x3] / *Sub) -10/Subcaves (discovered 2 exits: [*Mat] / *Rec) -9/Recycling (discovered 2 exits: [*Fac] / *Scr) -9/Scraptown (discovered 2 exits: *Fac x2) -6/Factory -6/Lower Caves -6/Lower Caves -6/Data Miner -5/Proximity Caves -5/Factory (discovered 3 exits: Fac / Upp / *Ext) -5/Extension (discovered 2 exits: *Fac / *Cet) -5/Cetus (discovered 2 exits: *Fac / [*Arc]) -4/Factory History --------- Turn | Location | Event 1 | -11/Scrapyard | Discovered new exit (range 0) 1 | -11/Scrapyard | Entered Materials 125 | -10/Materials | Discovered new exit (range 8) 305 | -10/Materials | Build established: Mutant 414 | -10/Materials | Repaired Ion Engine 563 | -10/Materials | Discovered new exit (range 12) 822 | -10/Materials | Discovered new exit (range 15) 993 | -10/Materials | Discovered new exit (range 8) 1007 | -10/Materials | Entered Subcaves 1041 | -10/Subcaves | A swath of the cavern ceiling suddenly collapsed 1380 | -10/Subcaves | Learned 4 Materials zone layouts 1420 | -10/Subcaves | Discovered new exit (range 9) 1759 | -10/Subcaves | Disturbed a concealed Subdweller 2092 | -10/Subcaves | Visited 4L-MR0's lab 2107 | -10/Subcaves | Found Arachnoskeleton 2225 | -10/Subcaves | Discovered new exit (range 14) 2261 | -10/Subcaves | Entered Recycling 2404 | -9/Recycling | Discovered new exit (range 8) 2537 | -9/Recycling | Scanned before Scraplab entrance 2550 | -9/Recycling | Entered Scraplab 2558 | -9/Recycling | Discovered new exit (range 3) 2560 | -9/Recycling | Entered Scraptown 2560 | -9/Scraptown | System corruption cleaned by C-Scrubber 2696 | -9/Scraptown | Visited Fellowship of the Rings 2741 | -9/Scraptown | Visited Junk Repository 2792 | -9/Scraptown | Visited Symbiants 2812 | -9/Scraptown | Visited Assassins FH 2857 | -9/Scraptown | Scanned Subdweller tech in exchange for log data 2859 | -9/Scraptown | Learned Factory emergency access door positions 2860 | -9/Scraptown | Learned location of Zion (-7) 2861 | -9/Scraptown | Learned Factory stockpile data 2862 | -9/Scraptown | Learned Research terminal intel 2874 | -9/Scraptown | Discovered new exit (range 7) 3132 | -9/Scraptown | Visited UFD Registry 3132 | -9/Scraptown | Registered with UFD as "Gravboard" 3145 | -9/Scraptown | Visited SPCMW 3228 | -9/Scraptown | Guru changed UFD alias to "Microtail" 3341 | -9/Scraptown | Visited Analyses Database 3364 | -9/Scraptown | Visited LU-1G1's Boring Crew 3422 | -9/Scraptown | Visited Scrap Suit Storage 3447 | -9/Scraptown | Delivered Scrap Shield to a Scientist 3600 | -9/Scraptown | Visited Scrapoid Research Area 3617 | -9/Scraptown | Visited Supply Room 3674 | -9/Scraptown | Visited DA-N13 Charitable Foundation 3683 | -9/Scraptown | Found DCF Scrap (27 items) 3727 | -9/Scraptown | Visited Chapter 10 3763 | -9/Scraptown | Visited Curators Association 3804 | -9/Scraptown | Visited Science Guys 3885 | -9/Scraptown | Found Scrap Suit 3951 | -9/Scraptown | Found Scrap Suit 4189 | -9/Scraptown | Discovered new exit (range 5) 4201 | -9/Scraptown | Entered Factory 4201 | -6/Factory | Evolved 8 slots: Power x1, Propulsion x2, Utility x5 4203 | -6/Factory | Attached Arachnoskeleton, gained temporary slots: Propulsion x3 4329 | -6/Factory | Build established: Derelict-Mutant 5014 | -6/Factory | Build established: Mutant 5936 | -6/Factory | Discovered new exit (range 7) 5955 | -6/Factory | Entered Lower Caves 5957 | -6/Lower Caves | UFD Scientist delivered a prototype 5966 | -6/Lower Caves | Found Prototype Protection 5966 | -6/Lower Caves | Identified Enh. Scrap Shield 5997 | -6/Lower Caves | Encountered a Warlord checkpoint 6025 | -6/Lower Caves | Learned 4 Factory zone layouts 6294 | -6/Lower Caves | Learned 4 Factory zone layouts 6301 | -6/Lower Caves | Learned location of 1 exit from Factory 6388 | -6/Lower Caves | Attracted the attention of an 0b10 outpost 7287 | -6/Lower Caves | Discovered new exit (range 8) 7300 | -6/Lower Caves | Entered another Lower Caves area 7332 | -6/Lower Caves | Learned Factory emergency access door positions 7519 | -6/Lower Caves | Spotted B-75 Beast 7616 | -6/Lower Caves | Discovered new exit (range 14) 7631 | -6/Lower Caves | Entered Data Miner 7631 | -6/Data Miner | Discovered new exit (range 6) 7655 | -6/Data Miner | Met Data Miner 7681 | -6/Data Miner | Learned location of Section 7 (-2) 7681 | -6/Data Miner | Acquired the access code to Warlord's prototype stash 7701 | -6/Data Miner | Received God Mode back door access code from Data Miner 7739 | -6/Data Miner | Entered Proximity Caves 7747 | -5/Proximity Caves | Spotter reported a threat 7748 | -5/Proximity Caves | Spotter reported a threat 7928 | -5/Proximity Caves | Spotter reported a threat 7940 | -5/Proximity Caves | Spotter reported a threat 7993 | -5/Proximity Caves | Spotter reported a threat 7998 | -5/Proximity Caves | Spotted B-75 Beast 8007 | -5/Proximity Caves | Discovered new exit (range 5) 8012 | -5/Proximity Caves | Entered Factory 8012 | -5/Factory | Evolved 2 slots: Propulsion x1, Utility x1 8013 | -5/Factory | Identified exit to Extension 8014 | -5/Factory | Identified exit to Factory 8014 | -5/Factory | Identified exit to Upper Caves 8292 | -5/Factory | Entered Extension 8372 | -5/Extension | Rescued a captive Derelict 8372 | -5/Extension | Rescued a captive Derelict 8416 | -5/Extension | Rescued a captive Derelict 8466 | -5/Extension | Rescued a captive Derelict 8591 | -5/Extension | Rescued a captive Derelict 8592 | -5/Extension | Search patrols dispatched 8592 | -5/Extension | Rescued a captive Derelict 8617 | -5/Extension | Rescued a captive Derelict 8618 | -5/Extension | Rescued a captive Derelict 8646 | -5/Extension | Rescued a captive Derelict 9042 | -5/Extension | Spotted B-75 Beast 9063 | -5/Extension | Allies destroyed B-75 Beast 9067 | -5/Extension | Spotted B-75 Beast 9075 | -5/Extension | Destroyed B-75 Beast 9092 | -5/Extension | Disrupted transfer network 9124 | -5/Extension | Lost 7 allies 9211 | -5/Extension | Lost 5 allies 9312 | -5/Extension | Rescued a captive Derelict 9313 | -5/Extension | Rescued a captive Derelict 9359 | -5/Extension | Rescued A7 9426 | -5/Extension | Rescued a captive Derelict 9426 | -5/Extension | Rescued a captive Derelict 9492 | -5/Extension | First assault squad dispatched 9693 | -5/Extension | Build established: Scavenger-Mutant 9774 | -5/Extension | Discovered exit to Factory (range 10) 9775 | -5/Extension | Discovered new exit (range 6) 9808 | -5/Extension | Disrupted transfer network 9817 | -5/Extension | Entered Cetus 9817 | -5/Cetus | Accompanied by 11 allies (A7) 9822 | -5/Cetus | Acquired a Cetus Manufacturing Module code from A7 9832 | -5/Cetus | Destroyed 8 combat bots 9834 | -5/Cetus | Spotted Cetus Guard 9834 | -5/Cetus | Spotted Cetus Guard 9836 | -5/Cetus | Spotted Cetus Guard 9836 | -5/Cetus | Spotted Cetus Guard 9856 | -5/Cetus | Allies destroyed Cetus Guard 9857 | -5/Cetus | Allies destroyed Cetus Guard 9865 | -5/Cetus | Destroyed Cetus Guard 9865 | -5/Cetus | Allies destroyed Cetus Guard 9885 | -5/Cetus | Lost 6 allies 9892 | -5/Cetus | System corruption reached 10% 10132 | -5/Cetus | Discovered new exit (range 16) 10160 | -5/Cetus | Spotted Cetus Guard 10160 | -5/Cetus | Spotted Cetus Guard 10163 | -5/Cetus | Spotted Cetus Guard 10164 | -5/Cetus | Spotted Cetus Guard 10182 | -5/Cetus | Allies destroyed Cetus Guard 10185 | -5/Cetus | Destroyed Cetus Guard 10192 | -5/Cetus | Allies destroyed Cetus Guard 10198 | -5/Cetus | Allies destroyed Cetus Guard 10209 | -5/Cetus | Discovered exit to Factory (range 16) 10213 | -5/Cetus | Lost 5 allies 10218 | -5/Cetus | Met Revision 17 10255 | -5/Cetus | System corruption reached 30% 10536 | -5/Cetus | Entered Factory 10536 | -4/Factory | Accompanied by 1 ally (A7) 10536 | -4/Factory | Evolved 2 slots: Propulsion x1, Utility x1 11375 | -4/Factory | Spotted B-86 Titan 11526 | -4/Factory | Destroyed B-86 Titan 11741 | -4/Factory | Lost 6 parts (1p5u) 12042 | -4/Factory | Self-destructed Last Messages --------------- 12029_ Slug penetrates Wall. 12029_ Critical hit (Destroy). 12029_ Centrium Heavy Treads destroyed. 12030_ Penetrated by Slug. 12031_ The unstable cave ceiling collapses. 12032_ K-01 Serf collects debris. 12033_ Penetrated by Slug. 12034_ U-05 Engineer builds a Wall. 12034_ Penetrated by Slug. 12034_ Slug penetrates Wall. 12036_ K-01 Serf collects debris. 12039_ Penetrated by Slug. 12039_ Slug penetrates Wall. 12039_ Mak. Transmission Jammer destroyed. 12039_ M-28 Smith repairs Autogun. 12040_ Penetrated by Slug. 12040_ Slug penetrates Wall. 12040_ U-05 Engineer builds a Wall. 12040_ Adv. Cooling System destroyed. 12040_ K-01 Serf collects debris. Map ----- +----------------------------------------------------+ | ?????????????????????????????????????????????????? | | ?????????????????????????????????????????????????? | | ?????????????????????????????????????????????????? | | ?????????????????????????????????????????????????? | | ?????????????????????????????????????????????????? | | ?????????????????????????????????????????????????? | | ?????????????????????????????????????????????????? | | ???????????????????????????? ????????????????? | | ???????????????????????????? ??????????????? | | ???????????????????????????? ???????????? | | ??????????????????????? ???????????? | | ????????????????????? #???????????? | | ????????????????????? #???????????? | | ?????????????????????? t #???????????? | | ?????????????????????? #???????????? | | ?????????????????????? +???????????? | | ?????????????????????? #???????????? | | ??????????????????????? #???????????? | | ???????????????? ???? #???????????? | | ?????????????? [ ???? #???????????? | | ???????????# ?#### # #???????????? | | ???????????# ?# # #???????????? | | ???????????# ## # # ?????????? | | ???????????# ## # " ????????? | | ???????????# ## #| h ###?????????? | | ???????????+ ## @ [%! h ?? | | ???????????# ## ########????? | | ???????????# ## #???????????? | | ???????????# ## #???????????? | | ???????????# ## ;;;;; #???????????? | | ???????????# ## #???????????? | | ???????????# ^ ## ;#??????????? | | ???????????# ^^ ## ;#??????????? | | ???????????+ ## # s %;???????????? | | ???????????# + [;???????????? | | ???????????# ## m????????????? | | ???????????# ## ; ????????????? | | ???????????# ##k "?????????????? | | ???????????####### ## ???????????????? | | ???????????# # ### "?????????????????? | | ???????????#"" !# ### ???????????????????? | | ???????????#"" # ##?### #??????????????????????? | | ???????????#"T # ###############???????????????? | | ???????????#"" ! + ?????????##### | | ???????????#"" # ##?????????????????# | | ############ #"" #???????????????#### | | #######"" #??????????????? + = | | #?????#"T #??????????????????# | | """" """" #?????#"" #??????????????????# | | """" """" #?????#"" #??????????????????# | +----------------------------------------------------+ Best States ------------- Heat Dissipation 105 Energy Generation 45 Energy Capacity 600 Matter Stores 300 Matter Capacity 300 Sight Range 16 Terrain Scan Density 110 Jamming Range 14 Additional Mass Support 9 Armor Coverage 1400 Resistance: KI 30 Weapon Shielding 66 Evasion (%) 57 Targeting Accuracy 5 Recoil Reduction 6 Salvage Targeting 3 Item Schematics ----------------- Arm. Wheel | -9/Recycling | Hacked Combat Drone Bay | -6/Data Miner | Free Lgt. Regenerative Plating | -6/Data Miner | Free Enh. Flexi-carbon Leg | -6/Data Miner | Free Prc. Matter Filter | -6/Data Miner | Free Cld. Plasma Rifle | -6/Data Miner | Free Adv. Medium Treads | -6/Data Miner | Free Adv. Cryofiber Web | -6/Data Miner | Free Railgun | -6/Data Miner | Free Imp. Remote Datajack | -6/Data Miner | Free Adv. Thermal Shield | -6/Data Miner | Free Robot Schematics ------------------ B-48 Gladiator | -6/Data Miner | Free G-50 Soldier | -6/Data Miner | Free B-60 Warrior | -6/Data Miner | Free X-72 Disruptor | -6/Data Miner | Free A-27 Freighter | -6/Data Miner | Free Fabricated ------------ Nothing Alien Tech Used ----------------- None Achievements -------------- None Challenges ------------ None Game ------ Seed CloakEnhancedPropulsion Manual? 0 Play Time 01:45:31 Cumulative 96.7 hours Start 2024.08.19 @ 14:27:47 End 2024.08.20 @ 00:51:43 Sessions 3 Manual Loads 0 Difficulty Rogue Special Mode None Game No. 113 Rogue 113 Adventurer 0 Explorer 0 Win Type - Total 0 Types 0/0/0/0/0/0/0/0/0 Lore% 48 Gallery% 56 Achievement% 54 Wizard Run 0 Options --------- Layout 2 ASCII 0 Keyboard 0 Movement Mouse Keybinds 0 Fullscreen 1 Font 32/SmallcapsGlow Map View 50x44 Zoom Use 0% Tactical HUD 1 Map Filters NONE Filters NONE Steam 1 RUN: dd413e37-3181-4100-bd53-f944068ddfc4